bitfinex-derivatives/quotes_BTCF0:USTF0_20241013
["timestamp","ask_amount","ask_price","bid_price","bid_amount"]
[1728825691532,0.110592,62831.0,62830.0,0.059891]
[1728825692626,0.079594,62828.0,62827.0,0.079595]
[1728825692836,0.079595,62827.0,62826.0,0.001]
[1728825693424,0.079598,62825.0,62824.0,0.079599]
[1728825695336,0.080598,62825.0,62824.0,0.080599]
[1728825695630,0.080598,62825.0,62824.0,0.081599]
[1728825696926,0.080598,62825.0,62824.0,0.002]
[1728825700530,0.080598,62825.0,62824.0,0.081599]
[1728825700730,0.080598,62825.0,62824.0,0.002]
[1728825700932,0.080598,62825.0,62824.0,0.081599]
[1728825704035,0.12429795,62825.0,62824.0,0.081599]
[1728825706139,0.080598,62825.0,62824.0,0.081599]
[1728825706644,0.001,62825.0,62824.0,0.081599]
[1728825709044,0.1273926,62843.0,62828.0,0.079593]
[1728825709237,0.66379634,62848.0,62835.0,0.079584]
[1728825709238,0.04399657,62842.0,62835.0,0.079584]
[1728825709435,0.079584,62836.0,62835.0,0.079584]
[1728825710245,0.079574,62844.0,62832.0,0.3608]
[1728825710445,0.079582,62838.0,62835.0,0.079584]
[1728825710743,0.079583,62837.0,62836.0,0.079584]
[1728825711046,0.079581,62838.0,62837.0,0.079582]
[1728825711549,0.079574,62844.0,62835.0,0.001]
[1728825711738,0.079574,62844.0,62839.0,0.3608]
[1728825712244,0.3608,62864.0,62843.0,0.3608]
[1728825712442,0.3608,62864.0,62856.0,0.3608]
[1728825712743,0.3608,62864.0,62851.0,0.3608]
[1728825712946,0.079567,62850.0,62845.0,0.079572]
[1728825713142,0.3608,62856.0,62845.0,0.079572]
[1728825713143,0.07957,62848.0,62845.0,0.079572]
[1728825713343,0.3608,62849.0,62843.0,0.3608]
[1728825713542,0.3608,62849.0,62846.0,0.07957]
[1728825713741,0.3608,62849.0,62847.0,0.079569]
[1728825713944,0.3608,62849.0,62848.0,0.079568]
[1728825714153,0.079567,62850.0,62843.0,0.440374]
[1728825714346,0.079567,62849.0,62844.0,0.079573]
[1728825714646,0.079569,62848.0,62844.0,0.079573]
[1728825715349,0.109769,62848.0,62844.0,0.079573]
[1728825715556,0.109769,62848.0,62843.0,0.3608]
[1728825715853,0.0302,62848.0,62845.0,0.079572]
[1728825716044,0.07957,62847.0,62846.0,0.079571]
[1728825716241,0.07957,62847.0,62843.0,0.3608]
[1728825716554,0.07957,62847.0,62843.0,0.440374]
[1728825716944,0.079571,62846.0,62843.0,0.440374]
[1728825717251,0.079572,62846.0,62843.0,0.440374]
[1728825717454,0.111673,62845.0,62843.0,0.440374]
[1728825717752,0.0333,62844.0,62843.0,0.440374]
[1728825720040,0.079573,62845.0,62843.0,0.3608]
[1728825720241,0.079573,62845.0,62844.0,0.079574]
[1728825720436,0.079574,62844.0,62840.0,0.079578]
[1728825720653,0.079574,62844.0,62838.0,0.3608]
[1728825720840,0.0323,62843.0,62842.0,0.079576]
[1728825721942,0.111875,62843.0,62842.0,0.079576]
[1728825722553,0.111875,62843.0,62842.0,0.080576]
[1728825723141,0.111875,62843.0,62842.0,0.081576]
[1728825724743,0.111875,62843.0,62842.0,0.080576]
[1728825724941,0.111875,62843.0,62842.0,0.081576]
[1728825725147,0.079571,62846.0,62845.0,0.079572]
[1728825731553,0.111069,62848.0,62839.0,0.07958]
[1728825731849,0.079571,62846.0,62844.0,0.079573]
[1728825732055,0.079572,62845.0,62844.0,0.079573]
[1728825734065,0.079578,62841.0,62840.0,0.079578]
[1728825734253,0.079578,62841.0,62839.0,0.004]
[1728825734254,0.079579,62840.0,62839.0,0.004]
[1728825735061,0.079579,62840.0,62827.0,0.0311]
[1728825735062,0.4229,62844.0,62826.0,0.363]
[1728825735356,0.4229,62844.0,62826.0,0.3608]
[1728825735357,0.07959,62831.0,62826.0,0.3608]
[1728825735762,0.12391995,62831.0,62826.0,0.3608]
[1728825736066,0.21911995,62831.0,62826.0,0.3608]
[1728825736663,0.21911995,62831.0,62830.0,0.001]
[1728825737361,0.21911995,62831.0,62826.0,0.3608]
[1728825737362,0.079595,62827.0,62826.0,0.3608]
[1728825738159,0.079597,62826.0,62823.0,0.0796]
[1728825739073,0.079599,62824.0,62823.0,0.0796]
[1728825739568,0.079599,62824.0,62823.0,0.0816]
[1728825739769,0.079597,62827.0,62826.0,0.079595]
[1728825739969,0.20347777,62831.0,62823.0,0.004]
[1728825740153,0.079599,62824.0,62823.0,0.0836]
[1728825742667,0.079599,62824.0,62823.0,0.0806]
[1728825742970,0.079599,62824.0,62823.0,0.0816]
[1728825743269,0.079599,62824.0,62823.0,0.0826]
[1728825743861,0.079599,62824.0,62823.0,0.0846]
[1728825744061,0.079599,62824.0,62823.0,0.0856]
[1728825744570,0.079599,62824.0,62823.0,0.0826]
[1728825744765,0.079599,62824.0,62823.0,0.0846]
[1728825746164,0.079599,62824.0,62823.0,0.0826]
[1728825746363,0.079599,62824.0,62823.0,0.0846]
[1728825747175,0.079599,62824.0,62823.0,0.0816]
[1728825747474,0.079599,62824.0,62823.0,0.0836]
[1728825749466,0.20347777,62831.0,62826.0,0.079595]
[1728825749663,0.079595,62827.0,62826.0,0.079595]
[1728825751573,0.079595,62827.0,62826.0,0.12691232]
[1728825751772,0.079595,62827.0,62826.0,0.079595]
[1728825763179,0.079595,62827.0,62826.0,0.15885533]
[1728825763486,0.079595,62827.0,62826.0,0.17887271]
[1728825764481,0.079595,62827.0,62826.0,0.1788739]
[1728825765688,0.079595,62827.0,62826.0,0.27399024]
[1728825766884,0.0325,62831.0,62830.0,0.079591]
[1728825767078,0.11209,62831.0,62830.0,0.1788699]
[1728825767287,0.0325,62831.0,62830.0,0.1788699]
[1728825767495,0.3608,62832.0,62831.0,0.07959]
[1728825767675,0.00238812,62837.0,62836.0,0.079584]
[1728825767883,0.00238812,62837.0,62836.0,0.1788629]
[1728825768988,0.00238812,62837.0,62836.0,0.17857405]
[1728825769384,0.00238812,62837.0,62836.0,0.18257405]
[1728825770492,0.00238812,62837.0,62836.0,0.26168086]
[1728825770883,0.08197012,62837.0,62836.0,0.26168086]
[1728825771283,0.12676614,62837.0,62836.0,0.083584]
[1728825771486,0.12676614,62837.0,62836.0,0.079584]
[1728825771683,0.12676614,62837.0,62836.0,0.085584]
[1728825772594,0.12676614,62837.0,62836.0,0.079584]
[1728825772793,0.12676614,62837.0,62836.0,0.083584]
[1728825773682,0.12675099,62837.0,62836.0,0.083584]
[1728825773878,0.08197012,62837.0,62836.0,0.083584]
[1728825776211,0.08197012,62837.0,62836.0,0.081584]
[1728825776402,0.08197012,62837.0,62836.0,0.085584]
[1728825778106,0.08197012,62837.0,62836.0,0.083584]
[1728825778408,0.08197012,62837.0,62836.0,0.002]
[1728825779694,0.1106937,62837.0,62836.0,0.001]
[1728825779899,0.1106937,62837.0,62834.0,0.0632855]
[1728825780110,0.079585,62835.0,62834.0,0.0632855]
[1728825780498,0.0317,62836.0,62834.0,0.0632855]
[1728825780699,0.0317,62836.0,62826.0,0.1746287]
[1728825780700,0.079587,62833.0,62832.0,0.0632855]
[1728825780902,0.079589,62832.0,62827.0,0.07910681]
[1728825781099,0.07959,62831.0,62830.0,0.04743236]
[1728825781310,0.079591,62830.0,62829.0,0.04743236]
[1728825782304,0.07959,62831.0,62828.0,0.04743236]
[1728825782497,0.440393,62829.0,62828.0,0.04743236]
[1728825782703,0.079594,62828.0,62827.0,0.04743236]
[1728825784001,0.079594,62828.0,62823.0,0.3608]
[1728825784002,0.079594,62828.0,62825.0,0.06323491]
[1728825784206,0.079596,62826.0,62825.0,0.06323491]
[1728825786208,0.079594,62828.0,62823.0,0.3608]
[1728825786209,0.079599,62824.0,62823.0,0.3608]
[1728825786919,0.079601,62822.0,62821.0,0.07910681]
[1728825787314,0.079601,62822.0,62818.0,0.07910681]
[1728825787517,0.0313,62821.0,62817.0,0.07910681]
[1728825787816,0.110903,62821.0,62820.0,0.06324862]
[1728825788017,0.110903,62821.0,62819.0,0.06324862]
[1728825788018,0.0313,62821.0,62819.0,0.06324862]
[1728825788219,0.079604,62820.0,62819.0,0.06324862]
[1728825789221,0.079605,62819.0,62818.0,0.06324862]
[1728825790514,0.079606,62818.0,62817.0,0.06324862]
[1728825791823,0.079606,62818.0,62817.0,0.07324862]
[1728825792518,0.079606,62818.0,62817.0,0.01]
[1728825792914,0.079606,62818.0,62817.0,0.02]
[1728825794412,0.3608,62823.0,62817.0,0.02]
[1728825794615,0.079602,62822.0,62821.0,0.079602]
[1728825794930,0.3608,62823.0,62822.0,0.079601]
[1728825795419,0.0796,62824.0,62818.0,0.0614]
[1728825795630,0.0328,62828.0,62818.0,0.0614]
[1728825795631,0.02881366,62832.0,62823.0,0.3608]
[1728825795817,0.079595,62828.0,62827.0,0.079595]
[1728825803528,0.079595,62828.0,62827.0,0.1269931]
[1728825805426,0.079595,62828.0,62827.0,0.079595]
[1728825812433,0.079595,62828.0,62822.0,0.3608]
[1728825812635,0.079599,62825.0,62824.0,0.079599]
[1728825813335,0.079599,62824.0,62815.0,0.41041564]
[1728825813545,0.079609,62816.0,62815.0,0.44041]
[1728825814137,0.079609,62816.0,62815.0,0.3608]
[1728825814839,0.079609,62816.0,62815.0,0.3728]
[1728825816249,0.079609,62816.0,62815.0,0.47161688]
[1728825816442,0.079609,62816.0,62815.0,0.48361688]
[1728825818846,0.079609,62816.0,62815.0,0.56322688]
[1728825822943,0.079609,62816.0,62815.0,0.20242688]
[1728825823642,0.079609,62816.0,62815.0,0.20245869]
[1728825824239,0.079609,62816.0,62815.0,0.10361]
[1728825833052,0.079606,62819.0,62818.0,0.079603]
[1728825833251,0.079606,62819.0,62818.0,0.14287736]
[1728825833648,0.079606,62819.0,62818.0,0.079603]
[1728825834244,0.079606,62819.0,62818.0,0.088603]
[1728825835149,0.079606,62819.0,62818.0,0.097603]
[1728825841349,0.079606,62819.0,62818.0,0.27666117]
[1728825841555,0.079606,62819.0,62818.0,0.19757096]
[1728825842148,0.079606,62819.0,62818.0,0.27674591]
[1728825842347,0.079606,62819.0,62818.0,0.19757096]
[1728825845553,0.079606,62819.0,62818.0,0.097603]
[1728825845753,0.079606,62819.0,62818.0,0.19763688]
[1728825846359,0.079606,62819.0,62818.0,0.097603]
[1728825854370,0.079606,62819.0,62818.0,0.19764965]
[1728825861279,0.12327197,62819.0,62818.0,0.097603]
[1728825863871,0.12327197,62819.0,62818.0,0.018]
[1728825864168,0.12327995,62819.0,62818.0,0.018]
[1728825868672,0.12326019,62819.0,62818.0,0.018]
[1728825869374,0.079606,62819.0,62818.0,0.23747968]
[1728825870277,0.079606,62819.0,62818.0,0.11812934]
[1728825871869,0.079606,62819.0,62818.0,0.21323684]
[1728825873468,0.079606,62819.0,62818.0,0.1131075]
[1728825873667,0.079606,62819.0,62818.0,0.21322396]
[1728825875870,0.079606,62819.0,62818.0,0.11811646]
[1728825876473,0.079606,62819.0,62818.0,0.018]
[1728825880071,0.079606,62819.0,62818.0,0.06555229]
[1728825881571,0.079606,62819.0,62818.0,0.018]
[1728825884484,0.079606,62819.0,62818.0,0.21323125]
[1728825887874,0.079606,62819.0,62818.0,0.11812529]
[1728825891376,0.079606,62819.0,62818.0,0.018]
[1728825892280,0.079606,62819.0,62818.0,0.06555668]
[1728825893685,0.079606,62819.0,62818.0,0.018]
[1728825899384,0.079606,62819.0,62818.0,0.11784411]
[1728825906582,0.079606,62819.0,62818.0,0.0972783]
[1728825907588,0.079606,62819.0,62818.0,0.19711667]
[1728825913587,0.12362443,62819.0,62818.0,0.018]
[1728825921497,0.12362443,62819.0,62818.0,0.11790604]
[1728825921498,0.079606,62819.0,62818.0,0.11790604]
[1728825928592,0.079606,62819.0,62818.0,0.21310651]
[1728825929593,0.079606,62819.0,62818.0,0.11790604]
[1728825933708,0.079606,62819.0,62818.0,0.1179148]
[1728825934406,0.079606,62819.0,62818.0,0.21311527]
[1728825934703,0.079606,62819.0,62818.0,0.21310241]
[1728825935109,0.079606,62819.0,62818.0,0.11790194]
[1728825936596,0.079606,62819.0,62818.0,0.018]
[1728825944506,0.079606,62819.0,62818.0,0.11788202]
[1728825946101,0.079606,62819.0,62818.0,0.19714355]
[1728825946303,0.079606,62819.0,62818.0,0.018]
[1728825946508,0.079606,62819.0,62808.0,0.09520047]
[1728825946509,0.079613,62813.0,62808.0,0.07927281]
[1728825946709,0.079622,62806.0,62805.0,0.00238822]
[1728825948802,0.079622,62806.0,62805.0,0.01638822]
[1728825949817,0.079622,62806.0,62805.0,0.03038822]
[1728825949818,0.080622,62806.0,62805.0,0.03038822]
[1728825951506,0.080622,62806.0,62805.0,0.01238822]
[1728825951719,0.11096016,62806.0,62805.0,0.02338822]
[1728825953709,0.83256016,62806.0,62805.0,0.02338822]
[1728825953908,0.83256016,62806.0,62805.0,0.021]
[1728825955519,0.75293816,62806.0,62792.0,0.0633]
[1728825955818,0.079638,62793.0,62792.0,0.0633]
[1728825956622,0.079638,62793.0,62792.0,0.0773]
[1728825957013,0.079638,62793.0,62792.0,0.0447]
[1728825957213,0.079638,62793.0,62792.0,0.0307]
[1728825957518,0.080638,62793.0,62792.0,0.014]
[1728825958211,0.080638,62793.0,62792.0,0.021]
[1728825959224,0.081638,62793.0,62792.0,0.014]
[1728825959928,0.081638,62793.0,62792.0,0.06150321]
[1728825960119,0.081638,62793.0,62792.0,0.014]
[1728825960819,0.081638,62793.0,62786.0,0.079647]
[1728825960820,0.080638,62793.0,62788.0,0.04750321]
[1728825961127,0.079643,62789.0,62788.0,0.04750321]
[1728825961426,0.3608,62792.0,62787.0,0.04750321]
[1728825961427,0.079644,62788.0,62787.0,0.04750321]
[1728825961726,0.079646,62787.0,62786.0,0.04750321]
[1728825962224,0.079647,62786.0,62785.0,0.0326]
[1728825962416,0.079647,62786.0,62785.0,0.07997938]
[1728825963824,0.080647,62786.0,62785.0,0.0326]
[1728825964020,0.081647,62786.0,62785.0,0.0396]
[1728825964727,0.081647,62786.0,62785.0,0.007]
[1728825966231,0.081647,62786.0,62785.0,0.086648]
[1728825969337,0.11102726,62786.0,62785.0,0.007]
[1728825970327,0.081647,62786.0,62785.0,0.007]
[1728825970531,0.002,62786.0,62785.0,0.564448]
[1728825970729,0.002,62786.0,62785.0,0.64362738]
[1728825970931,0.002,62786.0,62785.0,0.118448]
[1728825972434,0.07964,62792.0,62791.0,0.07964]
[1728825974026,0.08064,62792.0,62791.0,0.08664]
[1728825974232,0.08064,62792.0,62791.0,0.13403472]
[1728825974432,0.08064,62792.0,62791.0,0.08664]
[1728825974937,0.08164,62792.0,62791.0,0.09464]
[1728825978335,0.08164,62792.0,62791.0,0.12261918]
[1728825979126,0.002,62792.0,62791.0,0.12261918]
[1728825980636,0.002,62792.0,62791.0,0.17005837]
[1728825981625,0.002,62792.0,62791.0,0.12261918]
[1728825984434,0.081639,62792.0,62791.0,0.12261918]
[1728825984835,0.081639,62792.0,62791.0,0.09464]
[1728825986639,0.002,62792.0,62791.0,0.09464]
[1728825989050,0.081639,62792.0,62791.0,0.09464]
[1728825995547,0.002,62792.0,62791.0,0.27349396]
[1728825996448,0.002,62792.0,62791.0,0.19432603]
[1728825998144,0.079615,62812.0,62799.0,0.079631]
[1728825998349,0.079629,62801.0,62799.0,0.079631]
[1728825999444,0.079629,62801.0,62799.0,0.080631]
[1728826001845,0.079629,62801.0,62799.0,0.001]
[1728826002153,0.079629,62801.0,62800.0,0.079629]
[1728826003748,0.12398905,62801.0,62800.0,0.079629]
[1728826005747,0.12498905,62801.0,62800.0,0.079629]
[1728826006947,0.12497603,62801.0,62800.0,0.079629]
[1728826008255,0.04534703,62801.0,62800.0,0.079629]
[1728826008555,0.079619,62809.0,62808.0,0.079618]
[1728826010057,0.088619,62809.0,62808.0,0.080618]
[1728826011460,0.096619,62809.0,62808.0,0.081618]
[1728826015555,0.096619,62809.0,62808.0,0.12912315]
[1728826015757,0.017,62809.0,62808.0,0.081618]
[1728826017861,0.017,62809.0,62808.0,0.12912315]
[1728826018765,0.017,62809.0,62808.0,0.14494816]
[1728826019465,0.017,62809.0,62808.0,0.081618]
[1728826020564,0.017,62809.0,62808.0,0.14494816]
[1728826021267,0.017,62809.0,62808.0,0.081618]
[1728826021464,0.017,62809.0,62808.0,0.14494816]
[1728826024452,0.017,62809.0,62808.0,0.081618]
[1728826025461,0.017,62809.0,62808.0,0.002]
[1728826025462,0.096618,62809.0,62808.0,0.002]
[1728826026565,0.096618,62809.0,62808.0,0.06521839]
[1728826026759,0.096618,62809.0,62808.0,0.002]
[1728826028869,0.12564622,62809.0,62808.0,0.002]
[1728826036474,0.12564622,62809.0,62808.0,0.08122793]
[1728826037372,0.12564622,62809.0,62808.0,0.18058494]
[1728826038371,0.12564622,62809.0,62808.0,0.10135701]
[1728826038574,0.12564622,62809.0,62808.0,0.10137941]
[1728826040274,0.12564622,62809.0,62808.0,0.18064254]
[1728826040668,0.12564622,62809.0,62808.0,0.18064544]
[1728826041475,0.12564622,62809.0,62808.0,0.08126603]
[1728826041673,0.12564622,62809.0,62808.0,0.002]
[1728826041872,0.17001675,62809.0,62808.0,0.002]
[1728826042074,0.53081675,62809.0,62808.0,0.002]
[1728826043170,0.17001675,62809.0,62808.0,0.002]
[1728826043370,0.53081675,62809.0,62808.0,0.002]
[1728826045867,0.17001675,62809.0,62808.0,0.002]
[1728826046071,0.53081675,62809.0,62808.0,0.002]
[1728826048781,0.48644622,62809.0,62808.0,0.002]
[1728826055272,0.12564622,62809.0,62808.0,0.002]
[1728826055478,0.48644622,62809.0,62808.0,0.002]
[1728826055988,0.12564622,62809.0,62808.0,0.002]
[1728826056181,0.48644622,62809.0,62808.0,0.002]
[1728826056884,0.53063816,62809.0,62808.0,0.002]
[1728826057781,0.53062443,62809.0,62808.0,0.002]
[1728826057982,0.16982443,62809.0,62808.0,0.002]
[1728826058586,0.53062443,62809.0,62808.0,0.002]
[1728826062382,0.53062555,62809.0,62808.0,0.002]
[1728826063089,0.16982555,62809.0,62808.0,0.002]
[1728826063285,0.53062555,62809.0,62808.0,0.002]
[1728826063896,0.48644622,62809.0,62808.0,0.002]
[1728826066091,0.48644622,62809.0,62808.0,0.04954389]
[1728826066480,0.12564622,62809.0,62808.0,0.002]
[1728826066796,0.48644622,62809.0,62808.0,0.002]
[1728826067183,0.12564622,62809.0,62808.0,0.04954389]
[1728826067386,0.48644622,62809.0,62808.0,0.04954389]
[1728826067585,0.12564622,62809.0,62808.0,0.04954389]
[1728826067990,0.48644622,62809.0,62808.0,0.04954389]
[1728826069495,0.12564622,62809.0,62808.0,0.04954389]
[1728826069693,0.48644622,62809.0,62808.0,0.04954389]
[1728826069900,0.12564622,62809.0,62808.0,0.04954389]
[1728826070190,0.48644622,62809.0,62808.0,0.04954389]
[1728826071289,0.48644622,62809.0,62808.0,0.002]
[1728826071596,0.12564622,62809.0,62808.0,0.002]
[1728826071799,0.48644622,62809.0,62808.0,0.002]
[1728826072001,0.2211646,62809.0,62808.0,0.002]
[1728826072190,0.5819646,62809.0,62808.0,0.002]
[1728826073491,0.7093572,62809.0,62808.0,0.002]
[1728826073691,0.3485572,62809.0,62808.0,0.002]
[1728826073893,0.5819646,62809.0,62808.0,0.002]
[1728826075298,0.7093572,62809.0,62808.0,0.002]
[1728826075691,0.3485572,62809.0,62808.0,0.002]
[1728826075892,0.7093572,62809.0,62808.0,0.002]
[1728826076296,0.5819646,62809.0,62808.0,0.002]
[1728826076705,0.22119804,62809.0,62808.0,0.002]
[1728826076904,0.58199804,62809.0,62808.0,0.002]
[1728826078505,0.22119804,62809.0,62808.0,0.002]
[1728826078913,0.22119804,62809.0,62808.0,0.0654245]
[1728826078914,0.48644622,62809.0,62808.0,0.0654245]
[1728826082198,0.12564622,62809.0,62808.0,0.0654245]
[1728826082705,0.48644622,62809.0,62808.0,0.0654245]
[1728826087107,0.48644622,62809.0,62808.0,0.002]
[1728826092606,0.48644622,62809.0,62808.0,0.04960448]
[1728826092802,0.48644622,62809.0,62808.0,0.002]
[1728826093921,0.53061217,62809.0,62808.0,0.002]
[1728826094298,0.53060769,62809.0,62808.0,0.002]
[1728826096119,0.06116147,62809.0,62808.0,0.081619]
[1728826096304,0.017,62809.0,62808.0,0.081619]
[1728826099008,0.017,62809.0,62808.0,1.159259]
[1728826099814,0.079612,62814.0,62808.0,1.07964]
[1728826100115,0.079613,62813.0,62812.0,0.079613]
[1728826100517,0.079612,62816.0,62815.0,0.079609]
[1728826102816,0.090612,62816.0,62815.0,0.080609]
[1728826103015,0.451412,62816.0,62815.0,0.080609]
[1728826103403,0.451412,62816.0,62815.0,0.081609]
[1728826103404,0.452412,62816.0,62815.0,0.081609]
[1728826104206,0.452412,62816.0,62815.0,0.002]
[1728826107812,0.091612,62816.0,62815.0,0.002]
[1728826108017,0.452412,62816.0,62815.0,0.002]
[1728826110112,0.091612,62816.0,62815.0,0.002]
[1728826110318,0.452412,62816.0,62815.0,0.002]
[1728826115012,0.07962,62807.0,62806.0,0.04760442]
[1728826115219,0.079623,62805.0,62804.0,0.04760442]
[1728826115619,0.079624,62804.0,62803.0,0.04760442]
[1728826116126,0.079624,62804.0,62800.0,0.06348099]
[1728826116127,0.079623,62805.0,62802.0,0.04760442]
[1728826116323,0.079625,62803.0,62802.0,0.04760442]
[1728826116619,0.003,62805.0,62801.0,0.04760442]
[1728826116820,0.110922,62806.0,62802.0,0.04751645]
[1728826117024,0.079627,62802.0,62795.0,0.06006646]
[1728826117223,0.079627,62802.0,62796.0,0.079634]
[1728826117224,0.079634,62797.0,62796.0,0.079634]
[1728826118928,0.079634,62797.0,62796.0,0.083634]
[1728826119728,0.079634,62797.0,62796.0,0.088634]
[1728826124027,0.079634,62797.0,62796.0,0.18828366]
[1728826126741,0.079634,62797.0,62796.0,0.1882902]
[1728826126924,0.079634,62797.0,62796.0,0.28349067]
[1728826128237,0.10814796,62797.0,62796.0,0.28349067]
[1728826132148,0.10814796,62797.0,62796.0,0.088634]
[1728826138043,0.079634,62797.0,62796.0,0.088634]
[1728826139039,0.079634,62797.0,62796.0,0.18835233]
[1728826141356,0.079634,62797.0,62796.0,0.2835528]
[1728826142450,0.079634,62797.0,62796.0,0.18835233]
[1728826142848,0.079634,62797.0,62796.0,0.30730971]
[1728826144345,0.079634,62797.0,62796.0,0.3074782]
[1728826147063,0.079634,62797.0,62796.0,0.088634]
[1728826154157,0.079634,62797.0,62796.0,0.41861693]
[1728826154361,0.079634,62797.0,62796.0,0.5567982]
[1728826154661,0.079634,62797.0,62796.0,0.56177866]
[1728826155253,0.079634,62797.0,62796.0,0.41861693]
[1728826158765,0.079634,62797.0,62796.0,0.41854276]
[1728826159575,0.079634,62797.0,62796.0,0.30757369]
[1728826159970,0.079634,62797.0,62796.0,0.41854276]
[1728826160270,0.079634,62797.0,62796.0,0.30757369]
[1728826161366,0.079634,62797.0,62796.0,0.41854276]
[1728826162072,0.079634,62797.0,62796.0,0.19960307]
[1728826162269,0.079634,62797.0,62796.0,0.088634]
[1728826162873,0.079634,62797.0,62796.0,0.449434]
[1728826163267,0.079634,62797.0,62796.0,0.088634]
[1728826163472,0.079634,62797.0,62796.0,0.449434]
[1728826164776,0.079634,62797.0,62796.0,0.088634]
[1728826166782,0.079634,62797.0,62796.0,0.09856053]
[1728826169066,0.079634,62797.0,62796.0,0.2095296]
[1728826169271,0.079634,62797.0,62796.0,0.31764958]
[1728826171581,0.079634,62797.0,62796.0,0.67844958]
[1728826172484,0.079634,62797.0,62796.0,0.31764958]
[1728826173776,0.079634,62797.0,62796.0,0.67844958]
[1728826176790,0.079634,62797.0,62796.0,0.31764958]
[1728826176984,0.079634,62797.0,62796.0,0.67844958]
[1728826177683,0.079634,62797.0,62796.0,0.9278448]
[1728826178977,0.079634,62797.0,62796.0,0.5670448]
[1728826179485,0.079634,62797.0,62796.0,0.9278448]
[1728826181079,0.079634,62797.0,62796.0,0.5670448]
[1728826181281,0.079634,62797.0,62796.0,0.9278448]
[1728826181886,0.079634,62797.0,62796.0,0.91790614]
[1728826182976,0.079634,62797.0,62796.0,0.81191753]
[1728826183187,0.079631,62800.0,62799.0,0.07963]
[1728826183387,0.079631,62800.0,62799.0,0.29871905]
[1728826184183,0.079631,62800.0,62799.0,0.07963]
[1728826184887,0.079631,62800.0,62799.0,0.08063]
[1728826185591,0.079624,62805.0,62804.0,0.079623]
[1728826185893,0.079624,62805.0,62804.0,0.12732722]
[1728826186088,0.079624,62805.0,62804.0,0.079623]
[1728826186286,0.079624,62805.0,62804.0,0.12731046]
[1728826187093,0.082624,62805.0,62804.0,0.12731046]
[1728826187593,0.086624,62805.0,62804.0,0.12731046]
[1728826188491,0.086624,62805.0,62804.0,0.15543491]
[1728826189291,0.086624,62805.0,62804.0,0.10774745]
[1728826189895,0.086624,62805.0,62804.0,0.15543491]
[1728826192191,0.086624,62805.0,62804.0,0.20706053]
[1728826197610,0.086624,62805.0,62804.0,0.56786053]
[1728826198418,0.086624,62805.0,62804.0,0.20706053]
[1728826198617,0.086624,62805.0,62804.0,0.56786053]
[1728826199207,0.086624,62805.0,62804.0,0.46854745]
[1728826202519,0.007,62805.0,62804.0,0.46854745]
[1728826203409,0.007,62805.0,62799.0,0.04764156]
[1728826203612,0.079636,62795.0,62791.0,0.36318844]
[1728826203916,0.079638,62793.0,62792.0,0.00498052]
[1728826204115,0.079639,62792.0,62791.0,0.44282944]
[1728826204520,0.079639,62792.0,62791.0,0.44781039]
[1728826204913,0.079639,62792.0,62791.0,0.44282944]
[1728826205915,0.080639,62792.0,62791.0,0.45282944]
[1728826206222,0.080639,62792.0,62791.0,0.09202944]
[1728826206827,0.081639,62792.0,62791.0,0.10202944]
[1728826207329,0.081639,62792.0,62791.0,0.201828]
[1728826207330,0.002,62792.0,62791.0,0.201828]
[1728826207622,0.002,62792.0,62791.0,0.32562803]
[1728826208015,0.079633,62798.0,62791.0,0.32562803]
[1728826208214,0.079633,62798.0,62797.0,0.079633]
[1728826208429,0.0624,62802.0,62797.0,0.09979856]
[1728826208629,0.142029,62802.0,62801.0,0.079628]
[1728826218822,0.142029,62802.0,62801.0,0.25852542]
[1728826221127,0.142029,62802.0,62801.0,0.25850283]
[1728826221329,0.142029,62802.0,62801.0,0.15902012]
[1728826221527,0.142029,62802.0,62801.0,0.25846979]
[1728826221729,0.142029,62802.0,62801.0,0.25846184]
[1728826221929,0.142029,62802.0,62801.0,0.15901217]
[1728826222430,0.142029,62802.0,62801.0,0.079628]
[1728826222636,0.079632,62798.0,62797.0,0.12726324]
[1728826223235,0.079632,62798.0,62797.0,0.10834537]
[1728826225142,0.079632,62798.0,62797.0,0.11234537]
[1728826225835,0.079632,62798.0,62797.0,0.11634537]
[1728826229343,0.079632,62798.0,62797.0,0.20283327]
[1728826229533,0.079632,62798.0,62797.0,0.10755506]
[1728826232838,0.079632,62798.0,62797.0,0.10775263]
[1728826234038,0.079632,62798.0,62797.0,0.20303084]
[1728826234238,0.079632,62798.0,62797.0,0.10775263]
[1728826235735,0.10807042,62798.0,62797.0,0.10775263]
[1728826237232,0.10807042,62798.0,62797.0,0.008]
[1728826240031,0.46887042,62798.0,62797.0,0.008]
[1728826243841,0.10807042,62798.0,62797.0,0.008]
[1728826244037,0.46887042,62798.0,62797.0,0.008]
[1728826244241,0.10807042,62798.0,62797.0,0.10771724]
[1728826244836,0.46887042,62798.0,62797.0,0.18717564]
[1728826245545,0.46887042,62798.0,62797.0,0.10771724]
[1728826246946,0.46887042,62798.0,62797.0,0.18717389]
[1728826247134,0.46887042,62798.0,62797.0,0.187238]
[1728826247337,0.10807042,62798.0,62797.0,0.187238]
[1728826247537,0.46887042,62798.0,62797.0,0.187238]
[1728826247735,0.46887042,62798.0,62797.0,0.10778135]
[1728826248132,0.46887042,62798.0,62797.0,0.18723862]
[1728826248337,0.46887042,62798.0,62797.0,0.10778135]
[1728826248539,0.46887042,62798.0,62797.0,0.18723209]
[1728826249546,0.46887042,62798.0,62797.0,0.10778135]
[1728826250246,0.10807042,62798.0,62797.0,0.10778135]
[1728826250443,0.46887042,62798.0,62797.0,0.10778135]
[1728826252039,0.46887042,62798.0,62797.0,0.10777039]
[1728826252235,0.46887042,62798.0,62797.0,0.008]
[1728826252540,0.10807042,62798.0,62797.0,0.008]
[1728826252740,0.46887042,62798.0,62797.0,0.008]
[1728826254842,0.10807042,62798.0,62797.0,0.008]